[Event "Kragero Resort B 2020"]
[Site "Kragero"]
[Date "2020.02.22"]
[Round "7.8"]
[White "Shehzad, Alisha"]
[Black "Strand, Amund Pihl"]
[Result "0-1"]
[ECO "B43"]
[WhiteElo "1705"]
[BlackElo "1806"]
[Annotator "NA"]
[PlyCount "108"]
[EventDate "2020.02.19"]
[EventType "swiss"]
[EventCountry "NOR"]
[SourceTitle "playchess.com"]
[Source "ChessBase"]
[SourceQuality "1"]
[TimeControl "5400+30"]

1. e4 {[%emt 0:00:00]} c5 {[%emt 0:06:36]} 2. Nf3 {[%emt 0:00:00]} e6 {[%emt 0:00:08]} 3. d4 {[%emt 0:00:00]} cxd4 {[%emt 0:00:05]} 4. Nxd4 {[%emt 0:00:00]} a6 {[%emt 0:00:06]} 5. g3 {[%emt 0:00:48]} b5 {[%emt 0:01:26]} 6. Bg2 {[%emt 0:02:02]} Bb7 {[%emt 0:00:13]} 7. a3 {[%emt 0:02:41]} Nf6 {[%emt 0:03:14]} 8. Nc3 {[%emt 0:01:30]} Qc7 {[%emt 0:03:40]} 9. O-O {[%emt 0:09:23]} d6 {[%emt 0:03:44]} 10. Be3 {[%emt 0:02:43] B43: Sicilian: Kan Variation: 5 Nc3.} Be7 {[%emt 0:03:54]} 11. Qe2 {[%emt 0:04:57]} O-O {[%emt 0:01:05]} 12. Rad1 {[%emt 0:05:24]} Nbd7 {[%emt 0:02:53]} 13. Nb3 {[%emt 0:02:40]} Ne5 {[%emt 0:03:53]} 14. Bc1 {[%emt 0:09:27]} Nc4 {[%emt 0:02:48]} 15. Rd3 {[%emt 0:04:23]} Nd7 {[%emt 0:07:34]} 16. f4 {[%emt 0:04:09] [#]} Rfd8 $146 {[%emt 0:12:02]} ({Predecessor:} 16... Bf6 17. Rfd1 Rfd8 18. Nd4 Nc5 19. Rf3 Qb6 20. Kh1 Nxe4 21. Nxe4 Bxd4 22. b3 d5 {0-1 (35) Sikora,J (2165)-Drogoon,A (2385) Pardubice 1996}) 17. Kh1 {[%emt 0:05:26]} Bc6 {[%emt 0:03:22]} 18. Nd4 {[%emt 0:02:46]} Bb7 {[%emt 0:06:49]} 19. b3 {[%emt 0:06:39]} Ncb6 {[%emt 0:01:05]} 20. Bb2 {[%emt 0:01:24]} Bf6 {[%emt 0:05:28]} 21. Ba1 {[%emt 0:07:19]} Qc5 {[%emt 0:02:52]} 22. Rfd1 {[%emt 0:02:30]} Qxa3 {[%emt 0:01:35]} 23. Qe1 $17 {[%emt 0:02:39]} (23. e5 $11 {keeps the balance.} Bxg2+ 24. Kxg2 dxe5 25. Nc6 exf4 26. Nxd8 Rxd8 27. gxf4) 23... Qc5 {[%emt 0:01:37]} 24. g4 {[%emt 0:01:26]} Be7 {[%emt 0:05:52]} 25. f5 {[%emt 0:02:42]} e5 {[%emt 0:01:01]} 26. Nf3 {[%emt 0:00:51]} b4 {[%emt 0:00:59]} 27. Na2 {[%emt 0:03:23]} Nf6 {[%emt 0:00:52]} 28. Nd2 {[%emt 0:07:32]} Nxg4 {[%emt 0:01:19]} 29. Rf3 {[%emt 0:00:38]} a5 {[%emt 0:02:37]} 30. h3 {[%emt 0:01:18]} Nf6 {[%emt 0:00:09]} 31. c4 {[%emt 0:00:55]} a4 {[%emt 0:01:39]} 32. Nc1 {[%emt 0:01:11]} axb3 {[%emt 0:01:13]} 33. Ncxb3 {[%emt 0:00:09]} Qc6 {[%emt 0:00:27]} 34. Rg3 {[%emt 0:01:07]} Na4 {[%emt 0:01:37]} 35. Qg1 {[%emt 0:01:13]} Qb6 {[%emt 0:01:15]} 36. Qh2 {[%emt 0:01:00]} Nc3 {[%emt 0:00:50]} 37. Bxc3 {[%emt 0:01:45]} bxc3 {[%emt 0:00:08]} 38. Rxc3 {[%emt 0:00:13]} Bc6 {[%emt 0:06:31]} 39. Rg1 {[%emt 0:01:08]} Bf8 {[%emt 0:00:38]} 40. h4 {[%emt 0:00:37]} Ra2 {[%emt 0:04:02]} 41. Qg3 {[%emt 0:00:43]} Kh8 {[%emt 0:00:29]} 42. Bf3 {[%emt 0:00:39]} Rda8 {[%emt 0:00:50]} 43. Qh3 {[%emt 0:01:51]} Rb2 {[%emt 0:01:01]} 44. Bg2 {[%emt 0:00:24]} Raa2 {[%emt 0:00:21]} 45. h5 {[%emt 0:01:20]} h6 {[%emt 0:00:09]} 46. Rg3 {[%emt 0:00:39]} Ba4 {[%emt 0:01:10]} 47. Bf1 {[%emt 0:01:00]} Bxb3 {[%emt 0:00:19]} 48. Rxb3 {[%emt 0:00:43]} Rxb3 {[%emt 0:01:19]} 49. Nxb3 {[%emt 0:00:27]} Qf2 {[%emt 0:00:14]} 50. Bg2 {[%emt 0:00:34]} Ra3 {[%emt 0:00:27]} 51. Rb1 {[%emt 0:00:34]} Qc2 {[%emt 0:00:13]} 52. Ra1 {[%emt 0:00:35]} Rxb3 {[%emt 0:00:12]} 53. Qh2 {[%emt 0:00:17]} Rb1+ {[%emt 0:00:25]} 54. Rxb1 {[%emt 0:00:15]} Qxb1+ {[%emt 0:00:05]} 0-1

[Event "Kragero Resort B 2020"]
[Site "Kragero"]
[Date "2020.02.22"]
[Round "7.9"]
[White "Haugen, Lars Tormod"]
[Black "Nordquelle, Amelia"]
[Result "0-1"]
[ECO "A11"]
[WhiteElo "1598"]
[BlackElo "1768"]
[Annotator "NA"]
[PlyCount "118"]
[EventDate "2020.02.19"]
[EventType "swiss"]
[EventCountry "NOR"]
[SourceTitle "playchess.com"]
[Source "ChessBase"]
[SourceQuality "1"]
[TimeControl "5400+30"]

1. c4 {[%emt 0:01:48]} Nf6 {[%emt 0:00:00]} 2. Nc3 {[%emt 0:00:44]} e6 {[%emt 0:00:03]} 3. e3 {[%emt 0:07:02]} d5 {[%emt 0:01:50]} 4. Nf3 {[%emt 0:02:32]} c6 {[%emt 0:03:21]} 5. Qc2 {[%emt 0:00:42]} Bd6 {[%emt 0:01:45]} 6. b3 {[%emt 0:00:20]} O-O {[%emt 0:02:36]} 7. Bb2 {[%emt 0:00:09]} a6 {[%emt 0:05:08]} 8. Rg1 {[%emt 0:03:30]} e5 {[%emt 0:02:29]} 9. cxd5 {[%emt 0:15:12]} cxd5 {[%emt 0:00:37]} 10. h3 {[%emt 0:01:43]} Nc6 {[%emt 0:11:15]} 11. d4 {[%emt 0:35:24]} e4 {[%emt 0:10:30]} 12. Nd2 {[%emt 0:00:39]} Be6 {[%emt 0:03:50]} 13. a3 {[%emt 0:06:53]} Rc8 {[%emt 0:07:20]} 14. b4 {[%emt 0:02:20]} b5 {[%emt 0:02:49]} 15. Nb3 {[%emt 0:01:49]} Nd7 {[%emt 0:05:40]} 16. Nc5 {[%emt 0:06:12]} Nxc5 {[%emt 0:06:00]} 17. dxc5 {[%emt 0:00:00]} Bh2 {[%emt 0:00:54]} 18. Rh1 {[%emt 0:00:00]} Be5 {[%emt 0:02:01]} 19. O-O-O {[%emt 0:00:00]} f5 {[%emt 0:06:08]} 20. f4 {[%emt 0:00:00]} exf3 {[%emt 0:02:40]} 21. gxf3 {[%emt 0:00:00]} Rc7 {[%emt 0:01:35]} 22. Rg1 {[%emt 0:00:27]} Rd7 {[%emt 0:01:02]} 23. Ne2 {[%emt 0:00:50]} Qf6 {[%emt 0:01:27]} 24. Nd4 {[%emt 0:00:41]} Nxd4 {[%emt 0:02:20]} 25. Bxd4 {[%emt 0:00:04]} f4 {[%emt 0:02:08]} 26. Qc3 {[%emt 0:02:23]} Bxd4 {[%emt 0:00:32]} 27. exd4 {[%emt 0:00:39]} Bf5 {[%emt 0:03:00]} 28. Bd3 {[%emt 0:03:25]} Bxh3 {[%emt 0:00:48]} 29. Qc2 {[%emt 0:00:25]} Bf5 {[%emt 0:00:25]} 30. Bxf5 {[%emt 0:04:47]} Qxf5 {[%emt 0:00:09]} 31. Rde1 {[%emt 0:00:29]} Qf7 {[%emt 0:04:51]} 32. Re5 {[%emt 0:00:33]} Re7 {[%emt 0:01:00]} 33. Rge1 {[%emt 0:00:27]} Rfe8 {[%emt 0:00:31]} 34. c6 {[%emt 0:02:21]} Rxe5 {[%emt 0:00:39]} 35. Rxe5 {[%emt 0:00:03]} Rc8 {[%emt 0:02:06]} 36. Qc5 {[%emt 0:00:02]} Qg6 {[%emt 0:02:51]} 37. Qxd5+ {[%emt 0:00:29]} Kh8 {[%emt 0:00:28]} 38. Qe6 {[%emt 0:00:35]} Rxc6+ {[%emt 0:00:23]} 39. Qxc6 {[%emt 0:00:13]} Qxc6+ {[%emt 0:00:03]} 40. Rc5 {[%emt 0:00:39]} Qe8 {[%emt 0:00:19]} 41. Re5 {[%emt 0:00:44]} Qd8 {[%emt 0:00:21]} 42. Kc2 {[%emt 0:00:02]} h6 {[%emt 0:00:40]} 43. Kd3 {[%emt 0:00:01]} Qa8 {[%emt 0:01:07]} 44. d5 {[%emt 0:00:03]} Qd8 {[%emt 0:02:06]} 45. Ke4 {[%emt 0:00:27]} g5 {[%emt 0:01:12]} 46. Re6 {[%emt 0:00:08]} h5 {[%emt 0:01:10]} 47. Rxa6 {[%emt 0:00:35]} Qd7 {[%emt 0:01:07]} 48. Ke5 {[%emt 0:00:58]} h4 {[%emt 0:00:26]} 49. Re6 {[%emt 0:00:29]} h3 {[%emt 0:00:49]} 50. d6 {[%emt 0:00:15]} Qg7+ {[%emt 0:00:27]} 51. Kf5 {[%emt 0:00:25]} Qd7 {[%emt 0:01:22]} 52. Ke5 {[%emt 0:00:04]} Kg8 {[%emt 0:00:37]} 53. Re7 {[%emt 0:00:01]} Qd8 {[%emt 0:00:08]} 54. Ke6 {[%emt 0:02:15]} h2 {[%emt 0:00:20]} 55. d7 {[%emt 0:00:37]} Qxd7+ {[%emt 0:00:46]} 56. Kxd7 {[%emt 0:00:20]} h1=Q {[%emt 0:00:04]} 57. Re8+ {[%emt 0:00:39]} Kf7 {[%emt 0:00:03]} 58. Re7+ {[%emt 0:00:01]} Kf6 {[%emt 0:00:13]} 59. Re6+ {[%emt 0:00:05]} Kf5 {[%emt 0:01:39]} 0-1

[Event "Kragero Resort B 2020"]
[Site "Kragero"]
[Date "2020.02.22"]
[Round "7.10"]
[White "Loberg, Eivind"]
[Black "Aasen, Joakim"]
[Result "0-1"]
[ECO "D00"]
[WhiteElo "1420"]
[BlackElo "1745"]
[Annotator "NA"]
[PlyCount "120"]
[EventDate "2020.02.19"]
[EventType "swiss"]
[EventCountry "NOR"]
[SourceTitle "playchess.com"]
[Source "ChessBase"]
[SourceQuality "1"]
[TimeControl "5400+30"]

1. d4 {[%emt 0:00:00]} Nf6 {[%emt 0:00:00]} 2. Bf4 {[%emt 0:00:00]} d5 {[%emt 0:00:00]} 3. e3 {[%emt 0:00:10]} c5 {[%emt 0:00:00]} 4. c3 {[%emt 0:02:53]} Nc6 {[%emt 0:00:17]} 5. Nd2 {[%emt 0:00:28]} Qb6 {[%emt 0:00:36]} 6. Qb3 {[%emt 0:00:35]} c4 {[%emt 0:00:30]} 7. Qc2 {[%emt 0:00:14]} e6 {[%emt 0:05:30]} 8. Ngf3 {[%emt 0:01:30]} Be7 {[%emt 0:00:16]} 9. b3 {[%emt 0:02:16]} cxb3 {[%emt 0:02:40]} 10. axb3 {[%emt 0:00:09]} Bd7 {[%emt 0:00:20]} 11. h3 {[%emt 0:05:31]} Rc8 {[%emt 0:01:01]} 12. Qd1 {[%emt 0:06:03]} O-O {[%emt 0:03:25]} 13. Bd3 {[%emt 0:00:53]} Bd8 {[%emt 0:00:28]} 14. O-O {[%emt 0:09:01]} Bc7 {[%emt 0:02:23]} 15. Ne5 {[%emt 0:00:25]} Be8 {[%emt 0:06:17]} 16. Ndf3 {[%emt 0:04:51]} Ne4 {[%emt 0:04:08]} 17. Qc2 {[%emt 0:02:41]} f6 {[%emt 0:14:18]} 18. Bxe4 {[%emt 0:08:35]} dxe4 {[%emt 0:09:11]} 19. Nc4 {[%emt 0:05:31]} Qb5 {[%emt 0:02:28]} 20. Bxc7 {[%emt 0:13:03]} exf3 {[%emt 0:06:00]} 21. Bg3 {[%emt 0:02:24]} Bg6 {[%emt 0:02:19]} 22. Qd1 {[%emt 0:04:39]} fxg2 {[%emt 0:01:39]} 23. Kxg2 {[%emt 0:00:26]} Rfd8 {[%emt 0:00:31]} 24. Kg1 {[%emt 0:03:26]} Qf5 {[%emt 0:02:53]} 25. Qg4 {[%emt 0:03:15]} Qd5 {[%emt 0:03:03]} 26. Rfe1 {[%emt 0:01:28]} Bh5 {[%emt 0:12:55]} 27. e4 {[%emt 0:01:20]} Qxc4 {[%emt 0:01:32]} 28. bxc4 {[%emt 0:00:30]} Bxg4 {[%emt 0:00:03]} 29. hxg4 {[%emt 0:00:17]} b6 {[%emt 0:00:31]} 30. f4 {[%emt 0:02:27]} Rd7 {[%emt 0:01:22]} 31. d5 {[%emt 0:01:12]} exd5 {[%emt 0:00:27]} 32. cxd5 {[%emt 0:00:13]} Na5 {[%emt 0:00:10]} 33. Re3 {[%emt 0:05:20]} Kf8 {[%emt 0:02:03]} 34. Rd3 {[%emt 0:00:27]} Rc5 {[%emt 0:01:39]} 35. Ra4 {[%emt 0:01:23]} Rc4 {[%emt 0:01:21]} 36. Rxc4 {[%emt 0:01:09]} Nxc4 {[%emt 0:00:01]} 37. Kf2 {[%emt 0:04:11]} a5 {[%emt 0:00:37]} 38. Ke1 {[%emt 0:00:22]} a4 {[%emt 0:00:25]} 39. Bf2 {[%emt 0:01:45]} Nb2 {[%emt 0:03:12]} 40. Rd1 {[%emt 0:03:09]} Nxd1 {[%emt 0:00:33]} 41. Kxd1 {[%emt 0:00:01]} a3 {[%emt 0:00:25]} 42. Kc2 {[%emt 0:00:16]} a2 {[%emt 0:00:06]} 43. Kb2 {[%emt 0:00:05]} Ra7 {[%emt 0:00:07]} 44. Ka1 {[%emt 0:00:16]} Ra4 {[%emt 0:00:28]} 45. Bxb6 {[%emt 0:00:35]} Rxe4 {[%emt 0:00:16]} 46. Kxa2 {[%emt 0:00:57]} Rxf4 {[%emt 0:00:20]} 47. Kb3 {[%emt 0:00:21]} Ke7 {[%emt 0:01:03]} 48. c4 {[%emt 0:00:12]} Kd6 {[%emt 0:00:59]} 49. Kb4 {[%emt 0:00:31]} Rxg4 {[%emt 0:00:27]} 50. Kb5 {[%emt 0:00:41]} h5 {[%emt 0:00:23]} 51. Bc5+ {[%emt 0:00:39]} Kd7 {[%emt 0:00:21]} 52. Bb6 {[%emt 0:00:46]} Rg5 {[%emt 0:01:24]} 53. Be3 {[%emt 0:02:21]} h4 {[%emt 0:04:47]} 54. Bxg5 {[%emt 0:00:31]} fxg5 {[%emt 0:00:01]} 55. Kb6 {[%emt 0:00:13]} h3 {[%emt 0:00:15]} 56. c5 {[%emt 0:00:05]} h2 {[%emt 0:00:20]} 57. c6+ {[%emt 0:00:06]} Kc8 {[%emt 0:00:28]} 58. d6 {[%emt 0:00:11]} h1=Q {[%emt 0:00:15]} 59. d7+ {[%emt 0:00:24]} Kd8 {[%emt 0:00:05]} 60. c7+ {[%emt 0:01:59]} Kxd7 {[%emt 0:00:08]} 0-1

[Event "Kragero Resort B 2020"]
[Site "Kragero"]
[Date "2020.02.22"]
[Round "7.11"]
[White "Opseth, Oliver"]
[Black "Espeland, Jonatan"]
[Result "1-0"]
[ECO "B22"]
[WhiteElo "1894"]
[BlackElo "1737"]
[Annotator "NA"]
[PlyCount "47"]
[EventDate "2020.02.19"]
[EventType "swiss"]
[EventCountry "NOR"]
[SourceTitle "playchess.com"]
[Source "ChessBase"]
[SourceQuality "1"]
[TimeControl "5400+30"]

{[%evp 16,46,17,7,32767,32767,29,18,27,-14,-20,-13,-16,-4,4,25,317,312,307,325,312,320,1437,1591,1466,1734,1434,1735,32767,32767,32767,1597,1447]} 1. e4 {[%emt 0:00:00]} c5 {[%emt 0:00:00]} 2. d4 {[%emt 0:00:00]} cxd4 {[%emt 0:00:00]} 3. c3 {[%emt 0:00:04]} Nf6 {[%emt 0:00:00]} 4. e5 {[%emt 0:00:21]} Nd5 {[%emt 0:00:00]} 5. cxd4 {[%emt 0:00:16]} e6 {[%emt 0:00:07]} 6. Nf3 {[%emt 0:00:47]} d6 {[%emt 0:00:08]} 7. Be2 {[%emt 0:05:22]} Be7 {[%emt 0:02:45] was the old line (7...Bd7). B22: Sicilian: 2 c3.} 8. O-O {[%emt 0:00:00]} O-O {[%emt 0:04:30]} 9. Nc3 {[%emt 0:07:15]} Nxc3 {[%emt 0:04:10]} 10. bxc3 {[%emt 0:00:03]} Qc7 {[%emt 0:00:23] [#]} 11. Qc2 $146 {[%emt 0:04:05]} ({Predecessor:} 11. Qb3 Nc6 12. Bf4 dxe5 13. Nxe5 Nxe5 14. Bxe5 Bd6 15. Bxd6 Qxd6 16. Bf3 Rb8 17. Rab1 {1-0 (73) Spirkova,M (1293)-Croisille,S (1695) Bratislava 2019}) 11... Nc6 {[%emt 0:11:08]} 12. Ba3 {[%emt 0:02:52]} dxe5 {[%emt 0:08:31]} 13. Bxe7 {[%emt 0:00:04]} Qxe7 {[%emt 0:00:12]} 14. dxe5 {[%emt 0:00:08]} Qc5 {[%emt 0:04:17]} 15. Qe4 {[%emt 0:00:13]} Qxc3 $2 {[%emt 0:11:22] [#]} (15... Ne7 $11 {and Black has nothing to worry.}) 16. Ng5 $1 {[%emt 0:01:12]} g6 {[%emt 0:01:28]} 17. Qh4 {[%emt 0:03:19]} h5 {[%emt 0:00:17] [#]} 18. Bxh5 $1 {[%emt 0:07:54]} gxh5 $2 {[%emt 0:00:08]} (18... Kg7) 19. Qe4 {[%emt 0:00:07]} f5 {[%emt 0:06:00]} 20. exf6 $1 {[%emt 0:00:03]} Rxf6 {[%emt 0:00:27]} 21. Qh7+ {[%emt 0:00:04] Double Attack} Kf8 {[%emt 0:00:15]} 22. Qh8+ {[%emt 0:00:19]} Ke7 {[%emt 0:00:28]} 23. Qg7+ {[%emt 0:00:38]} Ke8 $18 {[%emt 0:02:29]} 24. Ne4 {[%emt 0:00:27]} 1-0

[Event "Kragero Resort B 2020"]
[Site "Kragero"]
[Date "2020.02.22"]
[Round "7.12"]
[White "Sekkingstad, Thomas"]
[Black "Olsen, William Alexander"]
[Result "1-0"]
[ECO "E32"]
[WhiteElo "1758"]
[BlackElo "1862"]
[Annotator "NA"]
[PlyCount "93"]
[EventDate "2020.02.19"]
[EventType "swiss"]
[EventCountry "NOR"]
[SourceTitle "playchess.com"]
[Source "ChessBase"]
[SourceQuality "1"]
[TimeControl "5400+30"]

1. d4 {[%emt 0:00:00]} Nf6 {[%emt 0:00:00]} 2. c4 {[%emt 0:00:01]} e6 {[%emt 0:00:00]} 3. Nc3 {[%emt 0:00:36]} Bb4 {[%emt 0:00:00]} 4. Qc2 {[%emt 0:00:11]} d5 {[%emt 0:02:35]} 5. Nf3 {[%emt 0:05:45]} O-O {[%emt 0:02:05]} 6. Bg5 {[%emt 0:01:02]} c6 {[%emt 0:01:08]} 7. e3 {[%emt 0:02:07]} Nbd7 {[%emt 0:00:13]} 8. Rc1 {[%emt 0:00:34]} h6 {[%emt 0:05:53]} 9. Bh4 {[%emt 0:01:45]} Qa5 {[%emt 0:08:18]} 10. a3 {[%emt 0:05:12]} Bd6 {[%emt 0:05:52]} 11. Be2 {[%emt 0:09:02]} dxc4 {[%emt 0:07:08]} 12. Bxc4 {[%emt 0:00:14]} c5 {[%emt 0:01:08]} 13. O-O {[%emt 0:03:27]} cxd4 {[%emt 0:08:09]} 14. Nb5 {[%emt 0:06:04]} Bb8 {[%emt 0:00:46]} 15. b4 {[%emt 0:00:30]} ({Much worse is} 15. exd4 $6 a6 $11) 15... Qd8 {[%emt 0:02:11]} 16. Nbxd4 {[%emt 0:00:15]} a6 {[%emt 0:01:11]} 17. Rfd1 {[%emt 0:15:18]} b5 {[%emt 0:04:19] [#]} (17... Qe8 $16) 18. Nc6 {[%emt 0:00:43]} (18. Bxe6 $1 $18 {[%mdl 512]} fxe6 19. Nxe6 {[%mdl 64] Double Attack}) 18... Qb6 {[%emt 0:01:02]} (18... Qe8 $16 {is a better defense.}) 19. Nxb8 $2 {[%emt 0:00:09]} (19. Bxe6 $1 $18 fxe6 20. Bxf6 (20. Ne7+ Kf7 $16) 20... Nxf6 21. Ne7+ {[%mdl 64] Double Attack, Discovered Attack} Kf7 22. Nxc8) 19... Rxb8 {[%emt 0:00:09]} 20. Be2 {[%emt 0:02:13]} Bb7 {[%emt 0:00:38]} 21. Nd4 {[%emt 0:06:45]} Rbc8 {[%emt 0:04:58]} 22. Qb2 {[%emt 0:01:52]} Bd5 {[%emt 0:06:13]} 23. Rxc8 {[%emt 0:14:25]} Rxc8 {[%emt 0:00:09]} 24. Rc1 {[%emt 0:00:03]} Qb7 {[%emt 0:02:25]} 25. Bf3 {[%emt 0:00:59]} (25. f3 $11) 25... Ne4 {[%emt 0:06:37]} 26. Bg3 {[%emt 0:03:07]} Nb6 $11 {[%emt 0:07:31]} 27. Bxe4 {[%emt 0:03:52]} Bxe4 {[%emt 0:00:10]} 28. f3 {[%emt 0:00:06]} Bd5 {[%emt 0:01:28]} 29. e4 {[%emt 0:00:07]} Bc4 {[%emt 0:00:11]} 30. Bf2 {[%emt 0:00:21]} Nd7 {[%emt 0:03:38]} 31. Nc2 {[%emt 0:04:02]} f6 {[%emt 0:03:17]} 32. Ne3 {[%emt 0:01:46]} Ne5 {[%emt 0:00:07]} 33. Nxc4 {[%emt 0:00:44]} Nd3 {[%emt 0:03:29]} 34. Nd6 {[%emt 0:01:45]} Rxc1+ {[%emt 0:05:12]} 35. Qxc1 {[%emt 0:00:17]} Qe7 {[%emt 0:00:04]} 36. Qc8+ {[%emt 0:00:28]} Kh7 {[%emt 0:00:04]} 37. Nb7 {[%emt 0:00:42]} Nxb4 {[%emt 0:01:24]} 38. axb4 {[%emt 0:00:15]} Qxb4 {[%emt 0:00:05]} 39. Qc2 {[%emt 0:00:05]} Qa3 {[%emt 0:00:20]} 40. h3 {[%emt 0:00:13]} a5 {[%emt 0:00:12]} 41. e5+ {[%emt 0:00:08]} f5 {[%emt 0:00:04]} 42. Nd6 {[%emt 0:00:08]} Qa1+ {[%emt 0:00:14]} 43. Kh2 {[%emt 0:00:08]} Qxe5+ {[%emt 0:00:06]} 44. Bg3 {[%emt 0:00:04]} Qd5 {[%emt 0:00:10]} 45. Qb2 {[%emt 0:00:29]} b4 {[%emt 0:00:36]} 46. Qe5 {[%emt 0:00:36]} Qa2 {[%emt 0:00:25]} 47. Ne8 {[%emt 0:00:11]} 1-0

[Event "Kragero Resort B 2020"]
[Site "Kragero"]
[Date "2020.02.22"]
[Round "8.1"]
[White "Halvorsen, Benjamin"]
[Black "Austad, Eirik"]
[Result "0-1"]
[ECO "B07"]
[WhiteElo "1861"]
[BlackElo "1796"]
[Annotator "NA"]
[PlyCount "80"]
[EventDate "2020.02.19"]
[EventType "swiss"]
[EventCountry "NOR"]
[SourceTitle "playchess.com"]
[Source "ChessBase"]
[SourceQuality "1"]
[TimeControl "5400+30"]

1. e4 {[%emt 0:00:00]} d6 {[%emt 0:00:00]} 2. d4 {[%emt 0:00:00]} Nf6 {[%emt 0:00:13]} 3. Nc3 {[%emt 0:00:08]} c6 {[%emt 0:00:07]} 4. Nge2 {[%emt 0:00:35]} g6 {[%emt 0:03:21]} 5. g3 {[%emt 0:00:37]} Bg7 {[%emt 0:05:31]} 6. Bg2 {[%emt 0:00:49]} Nbd7 {[%emt 0:05:19]} 7. O-O {[%emt 0:02:07]} e5 {[%emt 0:07:43]} 8. h3 {[%emt 0:05:34]} O-O {[%emt 0:05:43]} 9. Be3 {[%emt 0:01:10]} exd4 {[%emt 0:04:48]} 10. Nxd4 {[%emt 0:02:02]} Re8 {[%emt 0:03:33]} 11. f4 {[%emt 0:11:39]} Qe7 {[%emt 0:16:26]} 12. Nb3 {[%emt 0:09:33]} Nb6 {[%emt 0:11:22]} 13. Bd4 {[%emt 0:08:23]} d5 {[%emt 0:04:24]} 14. Bxb6 {[%emt 0:09:53]} axb6 {[%emt 0:00:07]} 15. exd5 {[%emt 0:00:41]} cxd5 {[%emt 0:03:54]} 16. Nxd5 {[%emt 0:01:30]} Nxd5 {[%emt 0:00:43]} 17. Qxd5 {[%emt 0:00:49]} Bxb2 {[%emt 0:01:59]} 18. Rae1 {[%emt 0:02:42]} Be6 {[%emt 0:04:55]} 19. Qd1 {[%emt 0:16:16]} Qc7 {[%emt 0:02:12]} 20. Be4 {[%emt 0:06:22]} Bxh3 {[%emt 0:02:22]} 21. Rf2 {[%emt 0:00:32]} Be6 {[%emt 0:00:52]} 22. Rh2 {[%emt 0:01:40]} Rad8 {[%emt 0:01:06]} 23. Bd3 {[%emt 0:02:02]} Bc3 {[%emt 0:01:55]} 24. Rf1 {[%emt 0:00:44]} Bxb3 {[%emt 0:01:10]} 25. axb3 {[%emt 0:00:12]} Qc5+ {[%emt 0:00:11]} 26. Kh1 {[%emt 0:00:32]} Re3 {[%emt 0:01:16]} 27. Qg4 {[%emt 0:01:57]} Qd5+ {[%emt 0:00:42]} 28. Rg2 {[%emt 0:00:22]} Be1 {[%emt 0:03:24]} 29. Kh2 {[%emt 0:02:13]} Qd4 {[%emt 0:00:51]} 30. Rf3 {[%emt 0:06:39]} Re5 {[%emt 0:01:16]} 31. Kh1 {[%emt 0:01:31]} Rh5+ {[%emt 0:01:01]} 32. Rh2 {[%emt 0:00:03]} f5 {[%emt 0:01:06]} 33. Qxh5 {[%emt 0:00:35]} gxh5 {[%emt 0:00:06]} 34. Rxh5 {[%emt 0:00:07]} Rd6 {[%emt 0:02:26]} 35. Bxf5 {[%emt 0:00:32]} h6 {[%emt 0:01:07]} 36. Rd3 {[%emt 0:00:46]} Qf6 {[%emt 0:00:46]} 37. Re3 {[%emt 0:00:21]} Bf2 {[%emt 0:00:46]} 38. Re8+ {[%emt 0:01:27]} Kf7 {[%emt 0:00:39]} 39. Rc8 {[%emt 0:00:11]} Qa1+ {[%emt 0:00:26]} 40. Kg2 {[%emt 0:00:02]} Qg1+ {[%emt 0:00:07]} 0-1

[Event "Kragero Resort B 2020"]
[Site "Kragero"]
[Date "2020.02.22"]
[Round "8.2"]
[White "Westrum, Kim Roger Hansen"]
[Black "Leonhardsen, Vebjorn Maanum"]
[Result "1-0"]
[ECO "B11"]
[WhiteElo "1809"]
[BlackElo "1845"]
[Annotator "NA"]
[PlyCount "92"]
[EventDate "2020.02.19"]
[EventType "swiss"]
[EventCountry "NOR"]
[SourceTitle "playchess.com"]
[Source "ChessBase"]
[SourceQuality "1"]
[TimeControl "5400+30"]

1. e4 {[%emt 0:00:00]} c6 {[%emt 0:00:00]} 2. Nf3 {[%emt 0:00:00]} d5 {[%emt 0:00:00]} 3. Nc3 {[%emt 0:00:00]} Bg4 {[%emt 0:00:19]} 4. h3 {[%emt 0:00:06]} Bxf3 {[%emt 0:00:14]} 5. Qxf3 {[%emt 0:00:08]} e6 {[%emt 0:00:20]} 6. d4 {[%emt 0:00:06]} Nf6 {[%emt 0:00:36]} 7. exd5 {[%emt 0:00:08]} cxd5 {[%emt 0:01:36]} 8. Bd3 {[%emt 0:00:16]} Be7 {[%emt 0:00:32]} 9. Ne2 {[%emt 0:00:37]} Nc6 {[%emt 0:00:32]} 10. c3 {[%emt 0:00:13]} Qc7 {[%emt 0:08:13]} 11. O-O {[%emt 0:00:56]} O-O {[%emt 0:00:12]} 12. Bg5 {[%emt 0:00:11]} a6 {[%emt 0:01:28]} 13. Nf4 {[%emt 0:04:38]} b5 {[%emt 0:05:10]} 14. Rfe1 {[%emt 0:02:27]} Rfb8 {[%emt 0:05:09]} 15. Bxf6 {[%emt 0:15:16]} Bxf6 {[%emt 0:00:24]} 16. Nxe6 {[%emt 0:02:04]} fxe6 {[%emt 0:08:23]} 17. Rxe6 {[%emt 0:00:22]} Ne7 {[%emt 0:09:48]} 18. Rae1 {[%emt 0:07:19]} Rf8 {[%emt 0:04:29]} 19. Rxe7 {[%emt 0:02:08]} Bxe7 {[%emt 0:01:06]} 20. Qxd5+ {[%emt 0:00:07]} Kh8 {[%emt 0:03:11]} 21. Qe4 {[%emt 0:02:01]} g6 {[%emt 0:01:27]} 22. Qxe7 {[%emt 0:00:06]} Qxe7 {[%emt 0:03:43]} 23. Rxe7 {[%emt 0:00:02]} Rfe8 {[%emt 0:00:18]} 24. Rxe8+ {[%emt 0:00:55]} Rxe8 {[%emt 0:00:05]} 25. Kf1 {[%emt 0:00:10]} Kg7 {[%emt 0:00:26]} 26. f3 {[%emt 0:05:58]} Kf6 {[%emt 0:00:46]} 27. Be4 {[%emt 0:00:59]} a5 {[%emt 0:01:29]} 28. Ke2 {[%emt 0:01:24]} Rc8 {[%emt 0:00:39]} 29. Kd3 {[%emt 0:00:41]} Kg5 {[%emt 0:01:49]} 30. d5 {[%emt 0:00:57]} Kf4 {[%emt 0:01:02]} 31. Kd4 {[%emt 0:00:08]} Rc4+ {[%emt 0:00:34]} 32. Kd3 {[%emt 0:00:06]} Rc8 {[%emt 0:00:13]} 33. b3 {[%emt 0:06:49]} Ke5 {[%emt 0:00:10]} 34. c4 {[%emt 0:08:36]} bxc4+ {[%emt 0:00:27]} 35. bxc4 {[%emt 0:00:01]} Rc7 {[%emt 0:01:14]} 36. g3 {[%emt 0:01:10]} Kd6 {[%emt 0:02:51]} 37. Kd4 {[%emt 0:00:17]} Rc5 {[%emt 0:01:54]} 38. f4 {[%emt 0:00:26]} Rc7 {[%emt 0:00:19]} 39. f5 {[%emt 0:00:38]} gxf5 {[%emt 0:00:17]} 40. Bxf5 {[%emt 0:00:08]} h6 {[%emt 0:00:18]} 41. g4 {[%emt 0:00:22]} Rc5 {[%emt 0:02:10]} 42. h4 {[%emt 0:00:07]} Rc7 {[%emt 0:00:08]} 43. a4 {[%emt 0:01:55]} Rc5 {[%emt 0:00:17]} 44. g5 {[%emt 0:00:08]} hxg5 {[%emt 0:00:05]} 45. hxg5 {[%emt 0:00:01]} Rc7 {[%emt 0:00:22]} 46. g6 {[%emt 0:00:21]} Ke7 {[%emt 0:00:34]} 1-0